Cogmind - Beta 11.1 @@@ ROGUE MODE // 2022.06.05 @ 13:31:46 Player: Plexion Result: Destroyed by DAS Turret with DAS Cannon Performance ------------- Evolutions (1) 500 Regions Visited (5) 1000 Robots Destroyed (47) 235 Value Destroyed (1155) 1155 Prototype IDs (27) 540 Alien Tech Used (0) 0 Bonus (360) 360 TOTAL SCORE: 3790 Bonus ------- Follower Combat Kills 60 Aligned with FarCom 300 Cogmind --------- Core Integrity 0/400 Matter 167/300 Energy 100/100 System Corruption 0% Temperature Cool (0) Movement Treading (160) Location -9/Exiles Parts ------- > --- POWER (1) -------- (None) > --- PROPULSION (2) --- Light Treads Light Treads > --- UTILITY (4) ------ Experimental Heat Sink Large Storage Unit Targeting Computer > --- WEAPON (2) ------- Light Assault Rifle > --- INVENTORY (15) --- Potential Leg Potential Leg Gravity Neutralizer Advanced Weapon Cycler Rocket Launcher Mini Grenade Launcher Peak State ------------ > --- POWER ------------ (None) > --- PROPULSION ------- Light Treads Light Treads > --- UTILITY ---------- Experimental Heat Sink Large Storage Unit Targeting Computer Targeting Computer > --- WEAPON ----------- Light Assault Rifle 8R-AWN's Boregun > --- INVENTORY -------- Potential Leg Potential Leg Gravity Neutralizer Advanced Weapon Cycler Rocket Launcher Mini Grenade Launcher [Rating: 26] Favorites ----------- Power Improved Ion Engine Engine Improved Ion Engine Propulsion Light Treads Treads Light Treads Utility Light Armor Plating Device Experimental Heat Sink Storage Large Storage Unit Processor Targeting Computer Protection Light Armor Plating Weapon Assault Rifle Ballistic Gun Assault Rifle Launcher Mini Grenade Launcher Build | -11 -10 -10 -9 -9 -9 ------- Run | Scr Mat Min Mat Min Exi Slots Evolved 2 | . . . 2 . . Power . | . . . . . . Propulsion . | . . . . . . Utility 2 | . . . 2 . . Weapon . | . . . . . . Parts Attached 45 | 6 5 3 12 1 18 Power 5 | 1 1 1 1 . 1 Engine 5 | 1 1 1 1 . 1 Core . | . . . . . . Reactor . | . . . . . . Propulsion 10 | 2 . 1 3 . 4 Treads 10 | 2 . 1 3 . 4 Leg . | . . . . . . Wheel . | . . . . . . Hover . | . . . . . . Flight . | . . . . . . Utility 12 | 1 2 . 5 . 4 Device 2 | . . . . . 2 Storage 3 | 1 1 . 1 . . Processor 2 | . 1 . . . 1 Hackware . | . . . . . . Protection 5 | . . . 4 . 1 Artifact . | . . . . . . Weapon 18 | 2 2 1 3 1 9 Energy Gun . | . . . . . . Energy Cannon . | . . . . . . Ballistic Gun 16 | 2 1 1 3 1 8 Ballistic Cannon . | . . . . . . Launcher 2 | . 1 . . . 1 Special Weapon . | . . . . . . Impact Weapon . | . . . . . . Slashing Weapon . | . . . . . . Piercing Weapon . | . . . . . . Special Melee Weapon . | . . . . . . Unidentified Prototypes 4 | . . . 1 . 3 Parts Lost 23 | . 1 1 4 . 17 Power 4 | . 1 . 1 . 2 Propulsion 5 | . . 1 . . 4 Utility 6 | . . . 2 . 4 Weapon 8 | . . . 1 . 7 Highest Loss Streak 10 | . 1 1 1 . 10 To Critical Strikes 8 | . . . . . 8 Average Slot Usage (%) 96 | . 91 100 98 100 93 Engine 10 | . 14 14 9 11 8 Treads 24 | . 28 28 22 22 22 Storage 12 | . 14 14 11 11 11 Processor 11 | . 6 14 11 11 12 Protection 12 | . . . 21 22 16 Ballistic Gun 23 | . 28 28 22 22 20 Naked Turns . | . . . . . . Heaviest Build 40 | 11 18 19 39 40 40 Greatest Support 52 | 40 40 40 40 40 52 Greatest Overweight (x) . | . . . . . . Average Overweight (x) . | . . . . . . Largest Inventory Capacity 15 | 8 10 10 15 15 15 Average Capacity 12 | 6 8 10 12 15 15 Most Carried 15 | 4 9 10 15 14 15 Average Carried 10 | 2 6 9 12 14 12 Final Capacity 15 | 8 10 10 15 15 15 Final Carried 14 | 4 9 10 14 14 6 Class Distribution -------------------- 69% | Mutant 30% | Scavenger-Mutant Dominant Class ---------------- Mutant | -10/Materials Mutant | -10/Mines Mutant | -9/Materials Scavenger-Mutant | -9/Mines Scavenger-Mutant | -9/Exiles Resources | -11 -10 -10 -9 -9 -9 ----------- Run | Scr Mat Min Mat Min Exi Matter Collected 1645 | 228 193 160 573 10 481 Remotely . | . . . . . . Salvage Created 1988 | . 321 391 1140 . 136 Parts 100 | . 25 18 53 . 4 Haulers Intercepted 5 | . . . 5 . . Recyclers Shooed . | . . . . . . Parts Field Recycled . | . . . . . . Retrieved Matter . | . . . . . . Parts Self-Destructed . | . . . . . . Prevented . | . . . . . . Kills | -11 -10 -10 -9 -9 -9 ------- Run | Scr Mat Min Mat Min Exi Combat Hostiles Destroyed 38 | . 10 5 18 . 5 Guns 31 | . 7 5 18 . 1 AOE 7 | . 3 . . . 4 Classes Destroyed 10 | . 5 1 3 . 1 Worker 2 | . 1 1 . . . Builder 1 | . 1 . . . . Hauler 5 | . . . 5 . . Recycler 4 | . . 2 2 . . Watcher 1 | . 1 . . . . Swarmer 7 | . 3 1 3 . . Grunt 19 | . 7 4 8 . . Brawler 1 | . . . 1 . . Sentry 6 | . . . 6 . . Assembled 4 | . . . . . 4 Best Kill Streak 5 | . 5 2 4 . 4 Combat Bots Only 4 | . 3 2 4 . 4 Max Kills in Single Turn 3 | . 3 1 2 . 2 Gunslinging 1 | . . . 1 . . Exploded 2 | . 2 . . . 2 Melee . | . . . . . . Uniques/NPCs Destroyed 1 | . . . . . 1 8R-AWN (-9/Exiles) Combat | -11 -10 -10 -9 -9 -9 -------- Run | Scr Mat Min Mat Min Exi Damage Taken 3243 | . 364 290 778 . 1811 Core 549 | . 44 51 156 . 298 Absorbed by Shields . | . . . . . . Core Remaining (%) 81 | 100 . 62 . . . Volleys Fired 221 | . 30 25 78 . 88 Largest 2 | . 2 2 2 . 2 Hottest 53 | . 40 53 53 . 53 Shots Fired 408 | . 58 50 156 . 144 Gun 402 | . 56 50 156 . 140 Cannon . | . . . . . . Launcher 6 | . 2 . . . 4 Special . | . . . . . . Kinetic 402 | . 56 50 156 . 140 Thermal . | . . . . . . Explosive 6 | . 2 . . . 4 Electromagnetic . | . . . . . . Robot Hit Streak 26 | . 10 10 11 . 26 Robot Miss Streak 4 | . 2 3 3 . 4 Penetration Max . | . . . . . . Secondary Targets 3 | . . 1 2 . . Max Gunslinging Chain 1 | . . 1 1 . . Shots Hit Robots 308 | . 43 36 108 . 121 Core Hits 96 | . 21 16 33 . 26 Critical Kills . | . . . . . . Critical Parts Destroyed 3 | . . 1 2 . . Critical Strikes 4 | . . 1 2 . 1 Destroy 4 | . . 1 2 . 1 Melee Attacks . | . . . . . . Impact . | . . . . . . Slashing . | . . . . . . Piercing . | . . . . . . Sneak Attacks . | . . . . . . Combat Hostiles . | . . . . . . Follow-up Attacks . | . . . . . . Damage Inflicted 4898 | . 791 442 1942 . 1723 Guns 4352 | . 447 442 1942 . 1521 Cannons . | . . . . . . Explosions 546 | . 344 . . . 202 Melee . | . . . . . . Ramming . | . . . . . . Kinetic 4352 | . 447 442 1942 . 1521 Thermal . | . . . . . . Explosive 546 | . 344 . . . 202 Electromagnetic . | . . . . . . Impact . | . . . . . . Slashing . | . . . . . . Piercing . | . . . . . . Highest Corruption . | . . . . . . Average Corruption . | . . . . . . Corruption Purged . | . . . . . . Corruption Blocked . | . . . . . . Overload Shots . | . . . . . . Overflow Damage 79 | . 79 . . . . Projectiles . | . . . . . . Explosions 79 | . 79 . . . . Melee . | . . . . . . Knockbacks . | . . . . . . Impact . | . . . . . . Kinetic . | . . . . . . Secondary . | . . . . . . Self-Inflicted Damage 31 | . 31 . . . . Shots 1 | . 1 . . . . Rammed . | . . . . . . Targets Rammed . | . . . . . . Kicked . | . . . . . . Crushed . | . . . . . . Highest Temperature 336 | . 18 18 336 . . Average Temperature 29 | . 7 9 34 . . Received Heat Transfer 633 | . 147 165 321 . . Siege Activations . | . . . . . . Robots Corrupted . | . . . . . . Combat Hostiles . | . . . . . . Parts Fried . | . . . . . . Impact Corruptions . | . . . . . . Robots Melted . | . . . . . . Combat Hostiles . | . . . . . . Parts Melted . | . . . . . . Heat Transferred . | . . . . . . Parts Sabotaged . | . . . . . . Parts Stolen . | . . . . . . Parts Stripped . | . . . . . . Power Chain Reactions . | . . . . . . Missiles Intercepted . | . . . . . . Alert | -11 -10 -10 -9 -9 -9 ------- Run | Scr Mat Min Mat Min Exi Peak Influence 301 | . 289 141 301 151 . Initial 117 | . . 81 52 117 . Average 136 | . 173 83 157 141 . Maximum Alert Level 1 | . 1 . 1 . . Low Security (%) 74 | 100 42 100 71 100 . Level 1 25 | . 57 . 28 . . Level 2 . | . . . . . . Level 3 . | . . . . . . Level 4 . | . . . . . . Level 5 . | . . . . . . High Security . | . . . . . . Max Security . | . . . . . . Squads Dispatched 4 | . 1 . 3 . . Investigation 1 | . . . 1 . . Extermination . | . . . . . . Reinforcement 3 | . 1 . 2 . . Assault . | . . . . . . Garrison . | . . . . . . Intercept . | . . . . . . Searches Triggered . | . . . . . . Construction Impeded . | . . . . . . Haulers Reinforced . | . . . . . . Active Scanning Responses . | . . . . . . Cargo Convoy Interrupts . | . . . . . . Stealth | -11 -10 -10 -9 -9 -9 --------- Run | Scr Mat Min Mat Min Exi Distress Signals 6 | . 1 . 4 1 . Communications Jammed . | . . . . . . Distress Signals . | . . . . . . Times Spotted 74 | . 20 8 31 2 13 Peak Tracking Total 9 | . 4 3 4 1 9 Tactical Retreats 7 | . 1 2 1 . 3 Traps | -11 -10 -10 -9 -9 -9 ------- Run | Scr Mat Min Mat Min Exi Traps Triggered 2 | . 1 . 1 . . Indirectly . | . . . . . . Trap Hack Attempts . | . . . . . . Triggered . | . . . . . . Disarmed . | . . . . . . Reprogrammed . | . . . . . . Reused . | . . . . . . Traps Extracted . | . . . . . . Installed . | . . . . . . Triggered . | . . . . . . Exploded 3 | . . . . . 3 Machines | -11 -10 -10 -9 -9 -9 ---------- Run | Scr Mat Min Mat Min Exi Machines Disabled 6 | . 1 . . . 5 Max in Single Turn 1 | . 1 . . . 1 Machines Sabotaged . | . . . . . . Garrisons Compromised . | . . . . . . Overloaded Fab Kills . | . . . . . . Hacking | -11 -10 -10 -9 -9 -9 --------- Run | Scr Mat Min Mat Min Exi Machines Accessed 5 | . 2 . 1 . 2 Terminals 3 | . 2 . 1 . . Fabricators . | . . . . . . Repair Stations . | . . . . . . Recycling Units . | . . . . . . Scanalyzers . | . . . . . . Garrison Access . | . . . . . . Total Hacks 6 | . 3 . 1 . 2 Successful 4 | . 1 . 1 . 2 Failed 2 | . 2 . . . . Catastrophic . | . . . . . . Database Lockouts . | . . . . . . Manual 5 | . 3 . 1 . 1 Terminals 4 | . 3 . 1 . . Fabricators . | . . . . . . Repair Stations . | . . . . . . Recycling Units . | . . . . . . Scanalyzers . | . . . . . . Garrison Access . | . . . . . . Terminal Hacks 4 | . 1 . 1 . 2 Record 1 | . . . . . 1 Robot Analysis 1 | . 1 . . . . Hauler Manifests 1 | . . . 1 . . EX-Prototype ID Bank 1 | . . . . . 1 Fabricator Hacks . | . . . . . . Repair Station Hacks . | . . . . . . Recycling Unit Hacks . | . . . . . . Scanalyzer . | . . . . . . Garrison Access Hacks . | . . . . . . Unauthorized Hacks . | . . . . . . Terminals . | . . . . . . Fabricators . | . . . . . . Repair Stations . | . . . . . . Recycling Units . | . . . . . . Scanalyzers . | . . . . . . Garrison Access . | . . . . . . Data Cores Recovered . | . . . . . . Used . | . . . . . . Hacking Detections 1 | . 1 . . . . Full Trace Events . | . . . . . . Feedback Events . | . . . . . . Feedback Blocked . | . . . . . . Robot Schematics Acquired . | . . . . . . Robots Built . | . . . . . . Authchips . | . . . . . . Time . | . . . . . . Total Robot Build Rating . | . . . . . . Part Schematics Acquired . | . . . . . . Parts Built . | . . . . . . Authchips . | . . . . . . Time . | . . . . . . Total Part Build Rating . | . . . . . . Parts Repaired . | . . . . . . Time . | . . . . . . Parts Recycled . | . . . . . . Recycled Matter . | . . . . . . Retrieved Matter . | . . . . . . Retrieved Components . | . . . . . . Parts Scanalyzed . | . . . . . . Part Schematics Acquired . | . . . . . . Parts Damaged . | . . . . . . Bothacking | -11 -10 -10 -9 -9 -9 ------------ Run | Scr Mat Min Mat Min Exi Used RIF Installer . | . . . . . . Robots Hacked . | . . . . . . Non-combat . | . . . . . . Combat . | . . . . . . Robot Hacks Applied . | . . . . . . Relay Couplers Released . | . . . . . . Fabnet Peak Effective % . | . . . . . . Robots Rewired . | . . . . . . Allies Hacked . | . . . . . . Hacks Repelled . | . . . . . . Allies | -11 -10 -10 -9 -9 -9 -------- Run | Scr Mat Min Mat Min Exi Total Allies 3 | . . 1 . 2 . Largest Group 2 | . . 1 1 2 2 Highest-Rated Group 56 | . . 31 31 56 56 Highest-Rated Ally 31 | . . 31 31 31 31 Total Orders . | . . . . . . Ally Attacks 15 | . . . 4 11 . Total Damage 291 | . . . 61 230 . Kills 2 | . . . 1 1 . Allies Corrupted . | . . . . . . Allies Melted . | . . . . . . Intel | -11 -10 -10 -9 -9 -9 ------- Run | Scr Mat Min Mat Min Exi Robot Analysis Total 1 | . 1 . . . . Derelict Logs Recovered 1 | . . 1 . . . Drone Launches . | . . . . . . Drone Recoveries . | . . . . . . Exploration | -11 -10 -10 -9 -9 -9 ------------- Run | Scr Mat Min Mat Min Exi Turns Passed 4140 | 73 671 778 1195 163 1260 Spaces Moved 2060 | 46 345 430 548 96 595 Core 11 | 11 . . . . . Treads 2049 | 35 345 430 548 96 595 Legs . | . . . . . . Wheels . | . . . . . . Hover . | . . . . . . Flight . | . . . . . . Fastest Speed 50 | 50 160 160 160 160 160 Average Speed 159 | 133 160 160 160 160 160 Slowest Speed 160 | 160 160 160 160 160 160 Overloaded Moves . | . . . . . . Propulsion Burnouts . | . . . . . . Robots Hopped . | . . . . . . Cave-ins Triggered . | . . . . . . Exploration Rate (%) 48 | 3 59 84 49 30 68 Regions Visited 5 Branch Regions 3 Pre-discovered Areas 2 | . . 1 . . 1 Known Exits Taken . | . . . . . . Unknown Exits Taken 5 | 1 1 1 1 1 . Scrap Searched 1 | . . 1 . . . Spaces Dug . | . . . . . . Terrain Destroyed 70 | . 21 . 3 . 46 Melee . | . . . . . . Projectile 13 | . . . 3 . 10 AOE 53 | . 21 . . . 32 Terrain Rammed . | . . . . . . Walls Destroyed . | . . . . . . Machines Disabled . | . . . . . . Actions | -11 -10 -10 -9 -9 -9 --------- Run | Scr Mat Min Mat Min Exi Total 2526 | 55 411 474 716 105 765 Wait 139 | . 23 11 54 9 42 Move 2055 | 45 344 429 547 95 595 Hop . | . . . . . . Pick Up 40 | 4 7 3 14 . 12 Fast Attach 13 | 6 1 . 3 . 3 Attach 19 | . 1 1 5 . 12 Detach 1 | . . . . . 1 Swap 13 | . 3 2 4 1 3 Drop 25 | . 2 3 11 . 9 Fire 221 | . 30 25 78 . 88 Melee . | . . . . . . Ram . | . . . . . . Kick . | . . . . . . Crush . | . . . . . . Escape Stasis . | . . . . . . Rewire . | . . . . . . Trap . | . . . . . . Miscellaneous . | . . . . . . Route ------- -11/Scrapyard -10/Materials (discovered 3 exits: *Mat / [*Min x2]) -10/Mines (discovered 2 exits: *Mat x2) -9/Materials (discovered 2 exits: [*Mat] / [*Min]) -9/Mines -9/Exiles (discovered 1 exit: [*Min]) History --------- Turn | Location | Event 5 | -11/Scrapyard | Discovered new exit (range 16) 74 | -11/Scrapyard | Entered Materials 236 | -10/Materials | Discovered new exit (range 8) 255 | -10/Materials | Discovered new exit (range 14) 303 | -10/Materials | Build established: Mutant 361 | -10/Materials | Discovered new exit (range 9) 745 | -10/Materials | Entered Mines 1088 | -10/Mines | Found a hidden stash of uninstalled traps 1134 | -10/Mines | Discovered new exit (range 3) 1304 | -10/Mines | Learned location of Zion (-6) 1320 | -10/Mines | A weapon hastily lodged in a ceiling crevice suddenly fell to the ground 1473 | -10/Mines | Discovered new exit (range 6) 1487 | -10/Mines | Received a Mining Laser from a helpful Derelict 1523 | -10/Mines | Entered Materials 1523 | -9/Materials | Accompanied by 1 ally 1523 | -9/Materials | Evolved 2 slots: Utility x2 1936 | -9/Materials | Discovered new exit (range 16) 2353 | -9/Materials | Discovered new exit (range 15) 2718 | -9/Materials | Entered Mines 2721 | -9/Mines | Assembled infested the area 2799 | -9/Mines | Met 8R-AWN 2875 | -9/Mines | Discovered new exit (range 5) 2881 | -9/Mines | Entered Exiles 2881 | -9/Exiles | Accompanied by 2 allies 2905 | -9/Exiles | Discovered new exit (range 15) 2911 | -9/Exiles | Led the pair of lost Derelicts to a safe place 2921 | -9/Exiles | Welcomed by 8R-AWN 2944 | -9/Exiles | Met EX-HEX 2964 | -9/Exiles | Build established: Scavenger-Mutant 3008 | -9/Exiles | Met EX-DEC 3175 | -9/Exiles | Met EX-BIN 3197 | -9/Exiles | Aligned with FarCom system 3199 | -9/Exiles | Given EX-Vault access code 3239 | -9/Exiles | Opened EX-Vault 3248 | -9/Exiles | Found Potential Leg 3251 | -9/Exiles | Found Potential Leg 3284 | -9/Exiles | Warned to stay clear of 0b10 Research branches 3544 | -9/Exiles | Learned about 8R-AWN's background 3715 | -9/Exiles | Attacked by the Exiles 3844 | -9/Exiles | Core integrity fell below 50% 3925 | -9/Exiles | Lost 10 parts (2p2n3u3w) 3973 | -9/Exiles | Core integrity fell below 20% 3982 | -9/Exiles | Destroyed 8R-AWN 3988 | -9/Exiles | Found Prototype Ballistic Gun 4003 | -9/Exiles | Lost 5 parts (2n3w) 4067 | -9/Exiles | Identified 8R-AWN's Boregun 4141 | -9/Exiles | Destroyed by DAS Turret with DAS Cannon Last Messages --------------- 04090_ HV Slug penetrates Earth. 04094_ HV Slug penetrates Wall. 04096_ HV Slug penetrates Earth. 04098_ HV Slug penetrates Wall. 04100_ HV Slug penetrates Machine. 04102_ HV Slug penetrates Wall. 04108_ Wall collapses. 04113_ HV Slug penetrates Wall. 04115_ Acquired 3 matter. 04118_ HV Slug penetrates Wall. 04123_ Wall collapses. 04124_ HV Slug penetrates Machine. 04126_ HV Slug penetrates DAS Turret. 04130_ HV Slug penetrates Wall. 04136_ The unstable cave ceiling collapses. 04136_ HV Slug penetrates Wall. 04139_ Wall collapses. 04139_ 8R-AWN's Boregun destroyed. 04141_ Targeting Computer destroyed. 04141_ Critical hit (Blast). Map ----- +----------------------------------------------------+ | ?????????????????????????????????????????#" | | ?????????????????????????????????????????#" ## | | ?????????????????????????????????????????#""""""?# | | ?????????????????????????????????????????##"###??# | | ?????????????????????????????????????????????????# | | ?????????????????????????????????????????????????# | | ????????????????????????????????????????????????## | | ? ??????????????#######?????????????????????????#" | | ? ######???????# !! "#?????????????????????????#" | | #""#??????# "#?????????????????????????#" | | ??????# "#?????????????????????????#" | | " #????## ""#????????????##???????????#" | | " #####" ""#???????????? """????????#" | | ?# ##" ""##???????????" """????????## | | ??# #"" #### #?????????" ?????????# | | ?????# # # ##???????"" ?????????# | | ????????# #### ##??????"" "#????????# | | ????????### # #?????? ""?????????# | | ??######## #######???????" "?????????## | | ??# !!"""" % # #???????# #????????##" | | ??#! ## # ###???### ###?######"" | | ??#! ## ""#####X# #"###""""""" | | ??#! !"#### """""" " "" | | ??# !""""" #"" #?#"# "" """ " | | ??########"# # #?#### % % " " | | ????????? # # #????### @ | | ????????#### ## ??????#%; % | | ???????????# #? #?????###; | | ???????????# #?# ???????#;; | | ???????????# #??##??????##;; | | ???????????# #??????????# ; """ | | ???????????# ??????????# ##; #### | | ???????????# ?????????# #?# ""##??? | | ???????????? ????????# #??# """##???? | | ???????????? ???????# #??#"" """##????? | | ???????????? ??????# #???#"" = ""#?????? | | ???????????? ??????##????#"" !% ######## | | ???????????? ????????????#""" [ ## # | | ?????????????????????????#"" t | | ?????????????????????????##"" | | ??????????????????????????#"""" | | ??????????????????????????## | | ???????????????????????????#" " | | ???????????????????????????#"""" ""# | | ???????????????????????????#"" ""### | | ????????????????????????????" """"##?? | | ????????????????????????????""" """#??? | | ???????????????????????????## ""##??? | | ????????????????????????????#"" """##???# | | ?????????????????????????????#""" ##????# | +----------------------------------------------------+ Best States ------------- Heat Dissipation 54 Energy Generation 12 Energy Capacity 265 Matter Stores 300 Matter Capacity 300 Sight Range 16 Terrain Scan Density 10 Armor Coverage 300 Evasion (%) 50 Targeting Accuracy 10 Recoil Reduction 2 Item Schematics ----------------- None Robot Schematics ------------------ None Fabricated ------------ Nothing Alien Tech Used ----------------- None Achievements -------------- None Challenges ------------ None Game ------ Seed LinearTrackerMagmablaster Manual? 0 Play Time 00:22:10 Cumulative 241.6 hours Start 2022.06.05 @ 13:07:26 End 2022.06.05 @ 13:31:46 Sessions 1 Manual Loads 0 Difficulty Rogue Special Mode None Game No. 338 Rogue 251 Adventurer 87 Explorer 0 Win Type - Total 5 Types 3/0/1/1/0/0/0/0/0 Lore% 70 Gallery% 77 Achievement% 67 Wizard Run 0 Options --------- ASCII 0 Keyboard 0 Movement Numpad Keybinds 0 Fullscreen 1 Font 18/Smallcaps Map View 76x50 Tactical HUD 1 Map Filters NONE Filters NONE Steam 1 RUN: f451d867-800a-411f-a435-77003a21b99b